bitfinex/quotes_SOLUSD_20220302
["timestamp","ask_amount","ask_price","bid_price","bid_amount"]
[1646249652558,9.76187503,100.15,100.08,150.79267136]
[1646249653359,9.76187503,100.15,100.08,165.34171139]
[1646249653763,9.76187503,100.15,100.08,187.82108348]
[1646249654666,9.76187503,100.15,100.08,165.34171139]
[1646249656065,0.26809778,100.14,100.08,12.0]
[1646249656267,0.26809778,100.14,100.07,15.2067]
[1646249656965,0.26809778,100.14,100.08,28.32151714]
[1646249657166,9.76187503,100.15,100.08,28.32151714]
[1646249658172,5.76687503,100.13,100.08,28.32151714]
[1646249658370,5.76687503,100.11,100.08,28.32151714]
[1646249658571,5.76687503,100.13,100.08,28.32151714]
[1646249659671,5.76687503,100.15,100.08,42.87055717]
[1646249660071,5.76687503,100.15,100.09,6.0]
[1646249660272,5.76687503,100.15,100.1,12.0]
[1646249660475,5.76687503,100.15,100.1,114.42904003]
[1646249660874,5.76687503,100.16,100.11,2.54904003]
[1646249661073,5.76687503,100.16,100.13,99.63]
[1646249661273,5.76687503,100.16,100.13,111.88]
[1646249661474,5.76687503,100.16,100.13,14.79904003]
[1646249662090,9.76087503,100.19,100.13,29.78084003]
[1646249662490,9.76087503,100.19,100.13,14.79904003]
[1646249662691,9.76087503,100.19,100.13,12.25]
[1646249662993,9.76087503,100.19,100.13,0.25]
[1646249663190,9.76087503,100.19,100.11,63.97214003]
[1646249663591,24.74627503,100.19,100.11,61.1731]
[1646249664591,24.74627503,100.19,100.11,63.72214003]
[1646249664792,24.74627503,100.19,100.11,49.1731]
[1646249665894,24.74627503,100.19,100.11,148.8031]
[1646249667201,24.74627503,100.19,100.11,149.0531]
[1646249667998,24.74627503,100.19,100.11,151.60214003]
[1646249668601,24.74627503,100.19,100.11,163.60214003]
[1646249670103,24.74627503,100.19,100.11,63.97214003]
[1646249671408,24.74627503,100.19,100.11,14.54904003]
[1646249671603,5.76687503,100.17,100.09,2.54904003]
[1646249671803,5.76687503,100.14,100.07,58.26491244]
[1646249672004,5.76687503,100.14,100.08,6.0]
[1646249672208,5.76687503,100.14,100.08,8.54904003]
[1646249672403,14.9912,100.15,100.09,37.09689691]
[1646249672404,5.76687503,100.12,100.09,37.09689691]
[1646249673214,5.76687503,100.14,100.09,37.09689691]
[1646249673612,5.76687503,100.14,100.09,151.27593694]
[1646249673812,5.76687503,100.14,100.09,195.58427385]
[1646249674211,5.76687503,100.16,100.09,195.58427385]
[1646249674612,5.76687503,100.16,100.1,105.63]
[1646249674912,5.76687503,100.16,100.1,120.17904003]
[1646249675111,5.76687503,100.16,100.1,114.17904003]
[1646249675311,9.76087503,100.16,100.1,114.17904003]
[1646249675512,5.76687503,100.17,100.11,105.63]
[1646249675713,5.76687503,100.17,100.12,111.63]
[1646249675914,5.76687503,100.17,100.12,99.63]
[1646249676111,5.76687503,100.17,100.14,99.63]
[1646249676313,49.66928066,100.21,100.15,117.63]
[1646249676516,49.66928066,100.21,100.15,117.88]
[1646249676915,49.66928066,100.21,100.15,120.42904003]
[1646249677318,49.66928066,100.21,100.15,135.40744003]
[1646249677517,3.992,100.24,100.15,135.40744003]
[1646249678719,58.9546036,100.23,100.15,135.40744003]
[1646249678919,58.9546036,100.23,100.15,150.19024003]
[1646249680420,58.9546036,100.23,100.15,154.18224003]
[1646249683847,62.9466036,100.23,100.15,150.19024003]
[1646249684945,3.992,100.23,100.15,150.19024003]
[1646249685145,3.992,100.25,100.17,114.84267405]
[1646249685344,5.0,100.26,100.17,114.84267405]
[1646249685345,3.991,100.27,100.19,99.63]
[1646249685547,3.99,100.29,100.21,99.63]
[1646249685744,6.0,100.28,100.21,111.88]
[1646249686145,51.90325712,100.27,100.21,111.88]
[1646249686547,18.9611,100.29,100.21,12.25]
[1646249686745,3.99,100.31,100.22,8.54904003]
[1646249686945,6.0,100.3,100.22,20.79904003]
[1646249687146,3.989,100.29,100.22,20.79904003]
[1646249687346,3.989,100.31,100.22,20.79904003]
[1646249687546,43.55766292,100.3,100.23,35.57116153]
[1646249687747,3.989,100.29,100.24,6.0]
[1646249687947,6.0,100.28,100.24,6.0]
[1646249688146,3.989,100.29,100.24,6.0]
[1646249688347,3.989,100.29,100.24,14.271]
[1646249689349,3.989,100.29,100.24,125.901]
[1646249689546,47.54666292,100.3,100.24,126.151]
[1646249689748,47.54666292,100.3,100.24,120.151]
[1646249690148,43.55766292,100.3,100.24,120.151]
[1646249691150,43.55766292,100.3,100.25,105.63]
[1646249691349,43.55766292,100.3,100.25,117.88]
[1646249693648,43.55766292,100.3,100.25,133.1933]
[1646249694051,43.55766292,100.3,100.25,27.214]
[1646249694250,43.55766292,100.3,100.25,12.25]
[1646249695653,43.55766292,100.3,100.25,12.0]
[1646249695854,43.55766292,100.3,100.22,3.989]
[1646249696054,0.22216891,100.29,100.22,12.0]
[1646249696258,6.22216891,100.29,100.22,12.0]
[1646249696657,6.0,100.29,100.22,12.0]
[1646249696855,20.971,100.29,100.22,12.0]
[1646249697459,24.96,100.29,100.22,12.25]
[1646249697660,24.96,100.29,100.22,111.88]
[1646249697960,9.989,100.29,100.22,126.8485]
[1646249698160,43.55766292,100.3,100.22,130.8375]
[1646249698560,47.54666292,100.3,100.24,99.63]
[1646249698760,47.54666292,100.3,100.24,111.88]
[1646249698962,43.55766292,100.3,100.24,111.88]
[1646249699460,43.55766292,100.3,100.25,3.65420653]
[1646249699661,43.55766292,100.3,100.25,3.90420653]
[1646249699861,3.989,100.32,100.25,3.65420653]
[1646249700062,6.0,100.31,100.25,15.65420653]
[1646249700262,6.0,100.31,100.25,115.28420653]
[1646249700462,51.4899,100.33,100.26,105.63]
[1646249700662,3.988,100.33,100.26,117.63]
[1646249700868,60.59531709,100.33,100.26,124.307]
[1646249701166,3.988,100.32,100.26,124.557]
[1646249701564,3.988,100.32,100.26,24.927]
[1646249701866,3.988,100.32,100.26,12.25]
[1646249702665,3.988,100.32,100.26,45.33561492]
[1646249702865,3.988,100.32,100.26,12.25]
[1646249703266,3.988,100.32,100.26,12.0]
[1646249703869,3.988,100.32,100.26,42.64464881]
[1646249704671,3.988,100.32,100.26,42.89464881]
[1646249705871,3.988,100.32,100.27,99.63]
[1646249706072,215.8103,100.36,100.28,111.63]
[1646249706073,3.988,100.34,100.28,111.63]
[1646249706372,3.988,100.34,100.28,12.25]
[1646249706973,50.59779525,100.33,100.28,12.25]
[1646249707375,50.59779525,100.33,100.28,111.88]
[1646249708576,50.59779525,100.33,100.29,6.0]
[1646249710582,3.987,100.35,100.29,6.25]
[1646249710779,112.9,100.36,100.29,18.25]
[1646249710780,116.887,100.36,100.29,18.25]
[1646249710982,112.9,100.36,100.3,99.63]
[1646249711181,3.987,100.38,100.32,99.63]
[1646249711385,3.987,100.38,100.32,99.88]
[1646249711581,44.76070065,100.37,100.32,99.88]
[1646249711781,44.76070065,100.37,100.32,0.25]
[1646249711986,44.76070065,100.37,100.32,111.88]
[1646249713287,3.987,100.38,100.32,111.88]
[1646249713483,51.228,100.39,100.32,111.88]
[1646249713684,47.242,100.39,100.34,99.63]
[1646249713884,3.985,100.4,100.34,111.63]
[1646249714085,3.985,100.4,100.35,105.63]
[1646249714316,48.44932962,100.4,100.35,117.88]
[1646249714488,48.44932962,100.4,100.37,99.63]
[1646249714687,8.984,100.42,100.37,99.63]
[1646249714887,3.984,100.42,100.37,99.63]
[1646249715286,3.984,100.42,100.37,111.63]
[1646249715688,50.54272026,100.43,100.39,99.63]
[1646249715889,46.55872026,100.43,100.39,111.88]
[1646249716188,46.55872026,100.43,100.38,6.0]
[1646249716389,46.55872026,100.43,100.38,0.25]
[1646249716588,46.55872026,100.43,100.38,12.25]
[1646249717188,46.55872026,100.43,100.38,111.88]
[1646249717892,46.55872026,100.43,100.38,127.039]
[1646249718293,46.55872026,100.43,100.38,12.0]
[1646249718489,46.55872026,100.43,100.33,22.8556]
[1646249718490,0.13568759,100.42,100.33,22.8556]
[1646249718688,0.32234084,100.4,100.32,12.0]
[1646249718889,6.32234084,100.4,100.3,18.399]
[1646249719090,6.32234084,100.4,100.31,12.0]
[1646249719288,43.61431177,100.39,100.32,114.5832]
[1646249719489,6.0,100.4,100.32,126.5832]
[1646249719690,6.0,100.41,100.32,111.63]
[1646249719888,6.0,100.41,100.32,159.5015]
[1646249720091,6.0,100.41,100.33,6.0]
[1646249720289,6.0,100.41,100.34,12.0]
[1646249720491,116.80151716,100.42,100.35,10.895879]
[1646249720691,69.76351716,100.42,100.35,11.145879]
[1646249723389,73.74751716,100.42,100.35,11.145879]
[1646249723593,73.74751716,100.42,100.35,119.326879]
[1646249723794,73.74751716,100.42,100.35,19.696879]
[1646249724795,73.74751716,100.42,100.35,11.145879]
[1646249725193,3.984,100.42,100.35,11.145879]
[1646249725393,24.3242,100.44,100.36,18.0]
[1646249725594,23.6767,100.47,100.37,99.63]
[1646249725795,23.6767,100.47,100.38,6.0]
[1646249725796,6.0,100.46,100.38,6.0]
[1646249725996,9.983,100.46,100.38,6.25]
[1646249726197,47.15962413,100.45,100.39,28.66241746]
[1646249726498,47.15962413,100.45,100.39,128.54241746]
[1646249726697,24.9289,100.46,100.39,128.54241746]
[1646249727300,20.9459,100.46,100.39,128.54241746]
[1646249727497,6.0,100.46,100.39,128.54241746]
[1646249727697,6.0,100.46,100.41,99.63]
[1646249727898,6.0,100.46,100.41,0.25]
[1646249728300,3.983,100.47,100.41,0.25]
[1646249728500,160.0437,100.49,100.42,99.63]
[1646249728699,112.9,100.49,100.44,99.63]
[1646249728898,24.2245,100.52,100.44,99.63]
[1646249729101,3.98,100.52,100.44,0.25]
[1646249729313,54.50152724,100.51,100.44,17.145879]
[1646249729716,3.98,100.52,100.44,17.145879]
[1646249729917,3.98,100.52,100.44,29.145879]
[1646249730113,52.8611,100.53,100.45,99.63]
[1646249730314,52.8611,100.53,100.47,99.63]
[1646249730513,48.8811,100.53,100.47,0.25]
[1646249730714,49.72658811,100.52,100.47,12.25]
[1646249731415,49.72658811,100.52,100.47,111.88]
[1646249731614,49.72658811,100.52,100.47,12.25]
[1646249732216,49.72658811,100.52,100.48,99.63]
[1646249732419,3.98,100.54,100.48,99.88]
[1646249733315,51.9051478,100.56,100.49,132.02300586]
[1646249733518,6.0,100.55,100.5,117.63]
[1646249733816,6.0,100.55,100.5,117.88]
[1646249734217,6.0,100.55,100.5,120.42904003]
[1646249734417,6.0,100.56,100.5,120.42904003]
[1646249734818,5.86291372,100.56,100.5,120.42904003]
[1646249735020,3.978,100.56,100.5,135.35534003]
[1646249735318,158.8121,100.57,100.5,135.35534003]
[1646249735319,112.9,100.57,100.5,135.35534003]
[1646249735717,24.1949,100.6,100.5,135.35534003]
[1646249735917,57.56569463,100.59,100.51,3.978]
[1646249736117,57.56569463,100.59,100.53,7.1652906]
[1646249736319,57.56569463,100.59,100.53,7.4152906]
[1646249736519,6.0,100.58,100.53,7.4152906]
[1646249737121,5.5,100.58,100.53,7.4152906]
[1646249738923,5.5,100.58,100.51,3.978]
[1646249739123,0.12277102,100.56,100.49,12.0]
[1646249739323,0.12277102,100.56,100.48,12.0]
[1646249739522,6.12277102,100.56,100.48,12.0]
[1646249739724,6.12277102,100.56,100.49,129.05730006]
[1646249739924,49.22600891,100.55,100.49,155.98480006]
[1646249740127,6.0,100.56,100.5,6.0]
[1646249740324,22.9254,100.61,100.5,18.25]
[1646249740325,3.978,100.59,100.5,18.25]
[1646249740525,3.978,100.6,100.5,18.25]
[1646249740725,6.0,100.59,100.51,99.63]
[1646249740929,6.0,100.59,100.52,18.0]
[1646249741125,56.05224481,100.59,100.53,10.1309964]
[1646249741331,56.05224481,100.59,100.53,10.3809964]
[1646249741727,56.05224481,100.59,100.53,110.0109964]
[1646249742127,56.05224481,100.59,100.53,10.3809964]
[1646249744328,56.05224481,100.59,100.53,110.0109964]
[1646249744729,56.05224481,100.59,100.53,10.3809964]
[1646249744930,6.0,100.59,100.53,25.3025964]
[1646249745130,6.0,100.59,100.54,105.63]
[1646249745332,6.0,100.59,100.54,6.25]
[1646249745832,47.22245559,100.58,100.54,6.25]
[1646249746033,6.0,100.59,100.54,6.25]
[1646249747034,51.00352166,100.58,100.54,6.25]
[1646249747235,51.00352166,100.58,100.53,22.1309964]
[1646249747435,51.00352166,100.58,100.53,22.3809964]
[1646249748439,51.00352166,100.58,100.53,12.25]
[1646249749938,51.00352166,100.58,100.53,0.25]
[1646249750142,51.00352166,100.58,100.51,35.8004]
[1646249750539,51.00352166,100.58,100.52,6.0]
[1646249750740,51.00352166,100.58,100.52,105.88]
[1646249750939,51.00352166,100.58,100.53,130.63205178]
[1646249751139,51.00352166,100.58,100.53,130.88205178]
[1646249751341,51.00352166,100.58,100.52,12.0]
[1646249751540,51.00352166,100.58,100.49,87.7429]
[1646249751541,51.00352166,100.58,100.49,41.9774]
[1646249751739,0.11727289,100.57,100.5,6.0]
[1646249751940,51.00352166,100.58,100.5,6.0]
[1646249752239,54.98152166,100.58,100.51,28.03457476]
[1646249753139,54.98152166,100.58,100.51,127.66457476]
[1646249753341,51.00352166,100.58,100.51,139.66457476]
[1646249753540,51.00352166,100.58,100.51,139.91457476]
[1646249753740,6.0,100.59,100.51,142.46361479]
[1646249753941,6.0,100.59,100.52,6.0]
[1646249754142,20.926,100.59,100.52,0.25]
[1646249754743,58.84585183,100.58,100.52,0.25]
[1646249755143,58.84585183,100.58,100.51,43.20967476]
[1646249759649,58.84585183,100.58,100.51,142.83967476]
[1646249759851,58.84585183,100.58,100.52,105.63]
[1646249760050,58.84585183,100.58,100.52,132.8038]
[1646249760252,58.84585183,100.58,100.52,33.1738]
[1646249760454,6.0,100.59,100.52,132.8038]
[1646249760656,6.0,100.59,100.52,33.1738]
[1646249761554,6.0,100.59,100.54,114.5507]
[1646249761853,22.9254,100.61,100.54,126.8007]
[1646249762053,22.9254,100.61,100.55,105.63]
[1646249762253,22.9254,100.61,100.55,117.88]
[1646249762453,26.9014,100.61,100.56,11.5237217]
[1646249762652,3.976,100.61,100.56,11.7737217]
[1646249763072,3.976,100.61,100.56,111.1537217]
[1646249763269,23.7561,100.63,100.56,125.95276173]
[1646249763469,23.7561,100.63,100.57,6.0]
[1646249763670,23.7561,100.63,100.57,18.25]
[1646249763869,3.976,100.64,100.57,18.25]
[1646249764069,112.9,100.66,100.57,120.42904003]
[1646249764070,50.24123702,100.65,100.57,120.42904003]
[1646249764270,3.975,100.65,100.57,194.20534003]
[1646249764473,3.975,100.65,100.57,135.34534003]
[1646249765074,3.975,100.65,100.57,35.71534003]
[1646249765375,49.37941658,100.64,100.57,29.71534003]
[1646249766374,49.37941658,100.64,100.57,129.34534003]
[1646249766575,49.37941658,100.64,100.57,29.46534003]
[1646249766773,49.37941658,100.64,100.57,12.0]
[1646249766973,3.975,100.63,100.57,12.0]
[1646249767173,18.8953,100.63,100.57,12.0]
[1646249767376,14.9203,100.63,100.55,12.0]
[1646249767575,6.0,100.62,100.53,5.0]
[1646249767775,0.13246124,100.61,100.53,5.0]
[1646249768184,3.977,100.6,100.5,141.26]
[1646249768474,76.31678696,100.6,100.54,27.90040673]
[1646249768877,72.33978696,100.6,100.54,27.90040673]
[1646249772275,72.33978696,100.6,100.52,14.9237]
[1646249772477,72.33978696,100.6,100.52,15.1737]
[1646249772677,72.33978696,100.6,100.51,35.1751]
[1646249772878,74.08865525,100.6,100.51,35.1751]
[1646249773079,0.16196309,100.59,100.51,23.1751]
[1646249773286,14.93,100.57,100.5,36.28144214]
[1646249773484,46.89786639,100.56,100.51,6.0]
[1646249773878,3.978,100.58,100.51,6.0]
[1646249774279,14.9284,100.58,100.51,6.0]
[1646249774980,14.9284,100.58,100.51,6.25]
[1646249775279,14.9284,100.58,100.51,6.0]
[1646249775479,18.9064,100.58,100.51,6.0]
[1646249780081,18.9064,100.58,100.51,105.63]
[1646249780283,18.9064,100.58,100.51,6.0]
[1646249781487,6.0,100.57,100.5,36.28144214]
[1646249781686,14.9314,100.56,100.5,36.28144214]
[1646249781885,18.9094,100.56,100.5,36.28144214]
[1646249783687,49.53757374,100.55,100.5,36.28144214]
[1646249784491,49.53757374,100.55,100.48,134.8847]
[1646249784492,64.46937374,100.55,100.48,23.2547]
[1646249784689,64.46937374,100.55,100.46,35.9245]
[1646249784690,0.18095138,100.54,100.46,35.9245]
[1646249784894,0.18095138,100.54,100.46,38.47354003]
[1646249785090,4.16095138,100.54,100.46,23.9245]
[1646249785289,3.98,100.54,100.46,23.9245]
[1646249785491,3.98,100.54,100.47,29.22741145]
[1646249785690,14.9345,100.53,100.45,14.9331]
[1646249786094,14.9345,100.53,100.44,35.3717]
[1646249786692,14.9345,100.53,100.45,32.43551734]
[1646249787092,14.9345,100.53,100.45,32.68551734]
[1646249787592,14.9345,100.53,100.45,132.31551734]
[1646249787992,6.0,100.52,100.45,132.31551734]
[1646249788195,14.9345,100.53,100.45,132.31551734]
[1646249788395,6.0,100.52,100.45,132.31551734]
[1646249788595,6.0,100.52,100.45,32.68551734]
[1646249788796,14.9345,100.53,100.45,32.68551734]
[1646249789798,14.9345,100.53,100.45,132.31551734]
[1646249789997,14.9345,100.53,100.45,147.24951734]
[1646249790197,28.5948,100.54,100.45,186.92747477]
[1646249790398,28.5948,100.54,100.47,99.63]
[1646249790600,3.979,100.56,100.48,117.63]
[1646249790797,47.2025,100.57,100.48,117.88]
[1646249790998,6.0,100.56,100.48,120.42904003]
[1646249791202,45.79591924,100.55,100.49,106.75277912]
[1646249791402,45.79591924,100.55,100.49,19.37277912]
[1646249791600,45.79591924,100.55,100.48,2.54904003]
[1646249791800,3.979,100.54,100.46,36.1449]
[1646249792000,3.979,100.54,100.46,36.3949]
[1646249792501,3.979,100.54,100.47,30.28730951]
[1646249792701,3.979,100.54,100.47,30.53730951]
[1646249793002,14.9347,100.53,100.47,30.53730951]
[1646249794706,3.979,100.54,100.47,30.53730951]
[1646249794905,3.979,100.54,100.47,130.16730951]
[1646249795104,3.979,100.56,100.47,154.62941358]
[1646249795307,53.0197,100.57,100.49,99.63]
[1646249795506,53.0197,100.57,100.49,12.0]
[1646249795908,53.0197,100.57,100.49,12.25]
[1646249796105,55.85073535,100.56,100.49,12.25]
[1646249796306,70.78143535,100.56,100.49,12.25]
[1646249796708,70.78143535,100.56,100.48,71.45984003]
[1646249796924,3.979,100.55,100.48,47.9818]
[1646249797122,3.979,100.55,100.48,48.2318]
[1646249797323,18.9106,100.55,100.48,48.2318]
[1646249798222,18.9106,100.55,100.48,47.9818]
[1646249800222,18.9106,100.55,100.47,30.28730951]
[1646249800423,14.9316,100.55,100.47,30.28730951]
[1646249801025,14.9316,100.55,100.47,129.91730951]
[1646249801622,14.9316,100.55,100.47,30.28730951]
[1646249802024,3.979,100.54,100.47,30.28730951]
[1646249802223,14.9346,100.53,100.47,30.28730951]
[1646249803524,45.12853541,100.52,100.47,30.28730951]
[1646249804524,60.06473541,100.52,100.46,23.2983]
[1646249804925,60.06473541,100.52,100.44,24.6168]
[1646249805126,3.98,100.51,100.44,24.6168]
[1646249805325,3.98,100.51,100.42,13.45181305]
[1646249805528,6.0,100.5,100.43,39.48438588]
[1646249805926,6.0,100.5,100.43,38.98438588]
[1646249806126,52.84043227,100.49,100.43,38.98438588]
[1646249806326,67.78173227,100.49,100.43,38.98438588]
[1646249809530,6.0,100.5,100.43,38.98438588]
[1646249809728,6.0,100.5,100.43,41.78342591]
[1646249810432,58.15997064,100.5,100.43,41.78342591]
[1646249810830,58.15997064,100.5,100.43,39.23438588]
[1646249811834,73.09927064,100.5,100.43,39.23438588]
[1646249812234,73.09927064,100.5,100.43,138.86438588]
[1646249812934,73.09927064,100.5,100.43,138.59989152]
[1646249813137,20.9393,100.5,100.43,138.59989152]
[1646249813339,24.9203,100.5,100.43,138.59989152]
[1646249814136,74.40778576,100.5,100.43,138.59989152]
[1646249814335,74.40778576,100.5,100.44,6.0]
[1646249814536,70.42678576,100.5,100.44,6.0]
[1646249814938,6.0,100.5,100.44,105.63]
[1646249815239,3.981,100.52,100.44,120.42904003]
[1646249815437,3.98,100.54,100.44,144.61704003]
[1646249815637,3.98,100.54,100.44,169.09604003]
[1646249815837,56.81799166,100.53,100.44,169.09604003]
[1646249816037,56.81799166,100.53,100.44,184.03124003]
[1646249816443,18.9142,100.54,100.44,184.03124003]
[1646249816637,3.98,100.54,100.46,99.63]
[1646249816838,3.98,100.56,100.47,117.63]
[1646249817037,3.98,100.56,100.48,24.1542]
[1646249817237,3.98,100.56,100.48,36.1542]
[1646249817841,3.98,100.56,100.48,36.4042]
[1646249818137,18.9112,100.56,100.48,36.4042]
[1646249819141,14.9312,100.56,100.48,36.4042]
[1646249819340,50.6765238,100.55,100.48,36.4042]
[1646249819742,50.6765238,100.55,100.48,51.2974]
[1646249821242,65.6083238,100.55,100.48,51.2974]
[1646249826448,65.6083238,100.55,100.48,150.9274]
[1646249826649,14.9318,100.55,100.48,153.47644003]
[1646249827548,75.42154671,100.55,100.48,153.47644003]
[1646249828450,60.48974671,100.55,100.48,153.47644003]
[1646249829050,103.5945,100.57,100.48,153.47644003]
[1646249829250,6.0,100.56,100.49,105.63]
[1646249829452,6.0,100.56,100.49,117.88]
[1646249829649,6.0,100.56,100.49,120.42904003]
[1646249829849,3.979,100.58,100.49,120.42904003]
[1646249830049,49.26439241,100.57,100.49,120.42904003]
[1646249830351,64.19309241,100.57,100.49,120.42904003]
[1646249830575,64.19309241,100.57,100.49,117.88]
[1646249833354,64.19309241,100.57,100.49,18.0]
[1646249833554,0.34411387,100.56,100.49,18.0]
[1646249833754,15.27491387,100.56,100.49,18.0]
[1646249833956,44.71415225,100.55,100.49,18.0]
[1646249836262,44.45997302,100.55,100.49,12.3280898]
[1646249836462,59.39187302,100.55,100.48,24.1542]
[1646249836660,0.17857268,100.54,100.48,24.1542]
[1646249836863,4.15757268,100.54,100.48,24.1542]
[1646249837461,51.31143089,100.53,100.48,24.1542]
[1646249837862,51.31143089,100.53,100.47,32.49544597]
[1646249838080,66.24643089,100.53,100.48,6.0]
[1646249838484,66.19452598,100.53,100.48,6.0]
[1646249840183,66.19452598,100.53,100.49,6.60444026]
[1646249841284,66.19452598,100.53,100.48,6.0]
[1646249841485,66.19452598,100.53,100.47,6.0]
[1646249842287,66.19452598,100.53,100.47,39.67288152]
[1646249842486,66.19452598,100.53,100.47,6.0]
[1646249842687,66.19452598,100.53,100.44,36.479]
[1646249842888,0.24447866,100.52,100.44,24.479]
[1646249843087,14.9393,100.5,100.44,24.479]
[1646249843490,50.41201709,100.49,100.44,61.60075559]
[1646249844189,50.41201709,100.49,100.44,24.479]
[1646249844388,14.9393,100.5,100.44,24.479]
[1646249844589,14.9393,100.5,100.44,36.479]
[1646249844788,3.981,100.51,100.44,36.479]
[1646249845490,58.2554787,100.5,100.45,28.29553258]
[1646249845695,3.981,100.51,100.45,28.29553258]
[1646249845897,23.8272,100.52,100.45,28.29553258]
[1646249846096,27.8356,100.54,100.45,128.17553258]
[1646249846299,27.8356,100.54,100.46,141.8273]
[1646249846497,3.98,100.53,100.46,142.0773]
[1646249846698,22.8356,100.54,100.47,13.35339368]
[1646249846899,22.8356,100.54,100.49,27.72997121]
[1646249847099,80.68261972,100.55,100.49,27.72997121]
[1646249847701,3.98,100.57,100.49,127.35997121]
[1646249847902,84.63536075,100.58,100.5,117.63]
[1646249847903,28.4451,100.58,100.5,117.63]
[1646249848103,28.4451,100.58,100.5,117.88]
[1646249848304,24.4671,100.58,100.5,117.88]
[1646249848704,24.4671,100.58,100.51,11.36991502]
[1646249848907,28.4451,100.58,100.52,6.0]
[1646249849206,3.978,100.58,100.53,27.72997121]
[1646249852208,3.978,100.58,100.53,139.35997121]
[1646249852408,3.977,100.6,100.53,139.60997121]
[1646249852807,3.977,100.6,100.53,142.15901124]
[1646249853009,3.977,100.6,100.54,6.0]
[1646249853211,3.977,100.6,100.55,11.36991502]
[1646249853610,58.26153435,100.6,100.55,11.36991502]
[1646249855015,73.18583435,100.6,100.54,6.0]
[1646249855412,73.18583435,100.6,100.53,18.0]
[1646249855613,73.18583435,100.6,100.53,12.0]
[1646249855913,73.18583435,100.6,100.53,44.67931264]
[1646249859015,73.18583435,100.6,100.53,144.30931264]
[1646249859319,58.26153435,100.6,100.53,144.30931264]
[1646249859514,3.977,100.6,100.53,144.55931264]
[1646249859714,26.7764,100.61,100.54,105.63]
[1646249859915,26.7764,100.61,100.54,132.8009]
[1646249860315,3.977,100.61,100.54,132.8009]
[1646249860515,3.977,100.61,100.55,6.42057359]
[1646249860815,3.977,100.61,100.55,118.05057359]
[1646249861015,3.976,100.64,100.56,105.63]
[1646249861218,3.976,100.64,100.57,111.63]
[1646249861417,23.7106,100.65,100.58,6.0]
[1646249861615,23.7106,100.65,100.58,6.25]
[1646249861815,78.99427972,100.65,100.59,32.67931264]
[1646249862215,55.28367972,100.65,100.59,32.67931264]
[1646249864316,70.20057972,100.65,100.59,32.67931264]
[1646249864717,3.975,100.64,100.59,32.67931264]
[1646249865118,3.975,100.64,100.59,44.67931264]
[1646249867820,70.20057972,100.65,100.59,44.67931264]
[1646249869523,55.28367972,100.65,100.59,44.67931264]
[1646249869726,137.545,100.66,100.59,44.92931264]
[1646249869924,24.645,100.66,100.59,44.92931264]
[1646249870725,87.16169627,100.66,100.59,144.55931264]
[1646249870925,87.16169627,100.66,100.59,44.67931264]
[1646249873228,87.16169627,100.66,100.6,6.0]
[1646249873428,0.52454962,100.65,100.61,6.42057359]
[1646249882763,0.52454962,100.65,100.6,35.5821]
[1646249883763,0.52454962,100.65,100.61,28.54315843]
[1646249884365,0.52454962,100.65,100.6,35.5821]
[1646249884764,0.52454962,100.65,100.6,23.5821]
[1646249884964,0.2038883,100.64,100.56,3.975]
[1646249885165,0.2038883,100.64,100.56,15.975]
[1646249885372,43.49831053,100.64,100.57,27.58618537]
[1646249886065,43.29442223,100.64,100.57,27.58618537]
[1646249886265,47.26942223,100.64,100.57,27.58618537]
[1646249887067,62.18912223,100.64,100.57,27.58618537]
[1646249887665,62.18912223,100.64,100.56,3.975]
[1646249888466,0.52214907,100.63,100.56,3.975]